bitfinex-derivatives/quotes_ETHF0:USTF0_20250321
["timestamp","ask_amount","ask_price","bid_price","bid_amount"]
[1742569789575,2.3913,1953.0,1952.9,5.59795]
[1742569790177,0.6682,1953.2,1953.1,1.0245]
[1742569790372,0.6682,1953.2,1953.1,4.2323]
[1742569790373,3.05935,1953.2,1953.1,4.2323]
[1742569790781,3.05935,1953.2,1953.1,2.3449]
[1742569790982,3.05935,1953.2,1953.1,5.5527]
[1742569791184,3.05935,1953.2,1953.1,2.3449]
[1742569791789,3.05935,1953.2,1953.1,5.5527]
[1742569791977,3.05935,1953.2,1953.1,2.3449]
[1742569792178,3.05935,1953.2,1953.1,5.5527]
[1742569792378,0.70027813,1953.3,1953.2,1.02445]
[1742569792379,1.03211813,1953.3,1953.2,1.02445]
[1742569792687,1.03211813,1953.3,1953.2,2.43315]
[1742569792886,2.39051813,1953.3,1953.2,1.4087]
[1742569793073,3.04701813,1953.3,1953.2,2.43315]
[1742569793583,3.04701813,1953.3,1953.2,1.4087]
[1742569793774,1.03211813,1953.3,1953.2,2.43315]
[1742569794087,1.03211813,1953.3,1953.2,3.08785]
[1742569795385,1.03211813,1953.3,1953.2,1.4087]
[1742569795584,1.03211813,1953.3,1953.2,2.43315]
[1742569795884,0.00767813,1953.3,1953.2,2.43315]
[1742569796090,1.03206813,1953.3,1953.2,2.43315]
[1742569797388,1.03206813,1953.3,1953.2,1.4087]
[1742569797591,1.03206813,1953.3,1953.2,2.43315]
[1742569798678,1.03206813,1953.3,1953.2,1.4087]
[1742569798883,1.03206813,1953.3,1953.2,2.43315]
[1742569800087,0.00767813,1953.3,1953.2,2.43315]
[1742569800290,1.03206813,1953.3,1953.2,2.43315]
[1742569802681,0.00767813,1953.3,1953.2,2.43315]
[1742569804688,1.03206813,1953.3,1953.2,2.43315]
[1742569806689,1.0245,1953.1,1953.0,4.94495]
[1742569807098,1.0245,1953.1,1953.0,6.35195]
[1742569807286,1.3771,1953.1,1953.0,4.6148]
[1742569807585,1.02448,1953.2,1953.0,4.6148]
[1742569807889,0.00767813,1953.3,1953.2,1.02445]
[1742569808091,0.00767813,1953.3,1953.2,7.70425]
[1742569808292,1.03206813,1953.3,1953.2,9.00415]
[1742569808492,0.00767813,1953.3,1953.2,9.00415]
[1742569810792,2.56068,1953.6,1953.2,9.00415]
[1742569810793,3.472,1953.9,1953.8,1.02413]
[1742569810985,4.49614,1953.9,1953.8,1.02413]
[1742569811185,1.02414,1953.9,1953.8,1.02413]
[1742569811786,1.02413,1953.8,1953.7,1.71391813]
[1742569812087,1.02412,1953.9,1953.8,1.02408]
[1742569812291,1.3717,1953.9,1953.8,1.02413]
[1742569812486,1.3717,1953.9,1953.8,2.42313]
[1742569813191,0.00767813,1954.0,1953.9,1.02408]
[1742569813393,0.00767813,1954.0,1953.9,7.70388]
[1742569814193,0.00767813,1954.0,1953.9,8.36958]
[1742569814586,0.00767813,1954.0,1953.9,10.86958]
[1742569814891,0.62985,1954.3,1954.2,1.02392]
[1742569815093,2.5589,1954.9,1954.3,2.55959]
[1742569815281,2.5589,1954.9,1954.6,1.02371]
[1742569815282,1.3929,1954.7,1954.6,1.02371]
[1742569815480,1.3929,1954.7,1954.6,4.49471]
[1742569815686,0.7084,1954.9,1954.8,1.02361]
[1742569815884,2.41643,1955.0,1954.9,1.02356]
[1742569817404,1.02356,1954.9,1954.8,1.03125813]
[1742569817595,2.37946,1954.9,1954.8,1.03125813]
[1742569817892,1.02371,1954.6,1954.5,3.2078]
[1742569818396,1.02371,1954.6,1954.5,4.23157]
[1742569818997,2.37961,1954.6,1954.5,3.2078]
[1742569819696,2.37961,1954.6,1954.5,4.23157]
[1742569820089,2.37961,1954.6,1954.5,3.2078]
[1742569820592,2.37961,1954.6,1954.5,4.23157]
[1742569820999,2.37961,1954.6,1954.5,5.59357]
[1742569821197,3.07891,1954.6,1954.5,2.38577]
[1742569821495,3.07891,1954.6,1954.5,5.59357]
[1742569821695,3.07891,1954.6,1954.5,4.5698]
[1742569821898,1.02377,1954.5,1954.4,3.47767813]
[1742569822197,2.32807,1954.5,1954.4,4.50149813]
[1742569822587,2.32807,1954.5,1954.4,5.86349813]
[1742569823200,2.32807,1954.5,1954.4,4.83967813]
[1742569823498,2.32807,1954.5,1954.4,5.86349813]
[1742569823698,2.32807,1954.5,1954.4,4.50149813]
[1742569824302,2.32807,1954.5,1954.4,0.00767813]
[1742569824598,1.02398,1954.1,1954.0,1.024]
[1742569824799,1.02398,1954.1,1953.8,6.6778]
[1742569824800,2.55987,1954.2,1953.8,7.70189]
[1742569824994,1.02413,1953.8,1953.7,41.82415]
[1742569825392,1.02419,1953.7,1953.6,3.2078]
[1742569825594,2.35389,1953.7,1953.6,4.23204]
[1742569825902,2.35389,1953.7,1953.6,45.03204]
[1742569826198,1.3297,1953.7,1953.6,45.03204]
[1742569826399,1.3297,1953.7,1953.6,4.23204]
[1742569826596,2.35389,1953.7,1953.6,4.23204]
[1742569828197,1.02424,1953.6,1953.5,2.37416813]
[1742569828399,1.02424,1953.6,1953.1,0.7046]
[1742569828400,1.02445,1953.2,1953.1,4.23228]
[1742569828696,1.02445,1953.2,1953.1,3.2078]
[1742569828901,1.02445,1953.2,1953.1,4.23226]
[1742569829203,1.3693,1953.3,1953.2,1.02445]
[1742569829401,3.25046,1953.5,1953.2,1.02445]
[1742569829402,0.6897,1953.5,1953.4,1.02434]
[1742569829602,2.41519,1953.5,1953.4,1.02434]
[1742569830102,2.41519,1953.5,1953.4,2.40604]
[1742569830300,1.02439,1953.3,1953.2,4.49441]
[1742569830505,1.02439,1953.3,1953.2,4.8517]
[1742569830711,1.02438,1953.4,1953.2,4.8517]
[1742569830892,1.3909,1953.3,1953.2,5.87615]
[1742569831405,1.02427,1953.6,1953.5,1.02425]
[1742569831600,2.41517,1953.6,1953.5,1.02425]
[1742569832006,2.41517,1953.6,1953.5,2.38965]
[1742569832910,1.3909,1953.6,1953.5,2.38965]
[1742569833109,1.02419,1953.7,1953.5,2.38965]
[1742569833405,2.40419,1953.7,1953.6,4.23204]
[1742569834804,0.70347813,1953.8,1953.7,1.02419]
[1742569835004,0.00767813,1953.8,1953.7,2.39999]
[1742569835207,2.35550813,1953.8,1953.7,2.39999]
[1742569837405,2.35550813,1953.8,1953.6,7.70201]
[1742569837406,1.02419,1953.7,1953.6,7.70201]
[1742569837606,2.34789,1953.7,1953.6,7.70204]
[1742569838104,0.00767813,1953.8,1953.7,1.02419]
[1742569838314,0.00767813,1953.8,1953.7,2.36559]
[1742569838700,2.065,1954.2,1954.1,1.02398]
[1742569838906,1.02383,1954.4,1954.1,1.02398]
[1742569838907,1.02386,1954.4,1954.3,1.02382]
[1742569839103,2.38086,1954.4,1954.3,1.02382]
[1742569839408,2.38086,1954.4,1954.3,4.23162]
[1742569839909,2.38086,1954.4,1954.3,4.23167]
[1742569841204,2.38086,1954.4,1954.3,5.61417]
[1742569842212,2.38086,1954.4,1954.3,2.40637]
[1742569842411,1.357,1954.4,1954.3,2.40637]
[1742569842611,1.357,1954.4,1954.3,5.61417]
[1742569844319,2.38082,1954.4,1954.3,5.61417]
[1742569844614,2.38082,1954.4,1954.3,3.2078]
[1742569844822,1.02387,1954.3,1954.2,0.00767813]
[1742569845011,2.43297,1954.3,1954.2,0.00767813]
[1742569845417,1.4091,1954.3,1954.2,1.03159813]
[1742569845616,2.43297,1954.3,1954.2,2.42279813]
[1742569846513,1.03145813,1954.5,1954.4,1.02382]
[1742569846716,2.44055813,1954.5,1954.4,1.02382]
[1742569846916,1.02382,1954.4,1954.3,1.3912]
[1742569847116,1.02387,1954.3,1954.2,0.00767813]
[1742569847316,4.49287,1954.3,1954.2,0.00767813]
[1742569847619,4.58181611,1954.3,1954.2,0.00767813]
[1742569847811,5.91621611,1954.3,1954.2,0.00767813]
[1742569848615,1.02403,1954.0,1953.9,1.3978]
[1742569848811,1.02403,1954.0,1953.9,2.42188]
[1742569849616,1.02403,1954.0,1953.9,1.3978]
[1742569849917,1.3344,1954.1,1953.8,0.00767813]
[1742569849918,1.02408,1953.9,1953.8,0.00767813]
[1742569850219,4.7586,1953.9,1953.3,7.3409]
[1742569850420,1.02424,1953.6,1953.5,2.44338]
[1742569851011,2.31484,1953.7,1953.6,1.02424]
[1742569851213,1.2906,1953.7,1953.6,1.02424]
[1742569851620,1.02414,1953.8,1953.7,1.02419]
[1742569851819,1.02414,1953.8,1953.7,4.93539]
[1742569852420,1.02414,1953.8,1953.7,3.9112]
[1742569852622,1.02414,1953.8,1953.7,1.72759]
[1742569852926,1.02414,1953.8,1953.7,3.14669]
[1742569853725,2.31472,1953.9,1953.8,1.02413]
[1742569853917,2.31472,1953.9,1953.8,2.39843]
[1742569854117,1.2906,1953.9,1953.8,2.39843]
[1742569854418,1.02404,1954.0,1953.9,1.02408]
[1742569855114,1.02404,1954.0,1953.9,41.82408]
[1742569855925,2.35561,1954.1,1954.0,1.02403]
[1742569856118,2.35561,1954.1,1954.0,2.39833]
[1742569856624,1.3316,1954.1,1954.0,2.39833]
[1742569856821,0.6693,1954.4,1954.2,1.02389]
[1742569857125,2.44673,1954.3,1954.2,1.02389]
[1742569857323,2.44673,1954.3,1954.2,2.35369]
[1742569857826,2.44673,1954.3,1954.2,1.3298]
[1742569858318,2.44673,1954.3,1954.2,2.35372]
[1742569859418,2.44673,1954.3,1954.2,1.3298]
[1742569859613,1.02403,1954.1,1954.0,1.024]
[1742569859819,2.55998,1954.1,1953.8,0.7106]
[1742569860016,1.02413,1953.8,1953.7,4.23195]
[1742569860319,1.02413,1953.8,1953.7,2.32105]
[1742569861215,1.3369,1953.9,1953.6,1.02424]
[1742569861216,1.02419,1953.7,1953.6,1.02424]
[1742569861421,2.36109,1953.7,1953.6,2.32114]
[1742569861723,2.36109,1953.7,1953.6,1.2969]
[1742569862117,2.36109,1953.7,1953.6,2.32114]
[1742569862317,2.36109,1953.7,1953.5,0.00767813]
[1742569862318,1.02424,1953.6,1953.5,0.00767813]
[1742569862516,2.39204,1953.6,1953.5,1.03196813]
[1742569862916,2.39204,1953.6,1953.5,41.83196813]
[1742569863725,1.3678,1953.6,1953.5,45.03976813]
[1742569864319,1.02423,1953.7,1953.6,1.02424]
[1742569864524,2.39203,1953.7,1953.6,2.39544]
[1742569864928,1.3678,1953.7,1953.6,2.39544]
[1742569865226,1.02412,1953.9,1953.8,1.02408]
[1742569865424,2.34772,1953.9,1953.8,1.02408]
[1742569865926,0.672,1954.1,1953.9,1.02408]
[1742569866127,1.02407,1954.0,1953.9,1.02408]
[1742569866319,3.01961,1954.1,1954.0,1.02403]
[1742569866630,1.02398,1954.2,1954.1,1.02393]
[1742569866829,2.34758,1954.2,1954.1,1.02393]
[1742569867630,1.02403,1954.1,1954.0,1.02398]
[1742569867828,2.34763,1954.1,1954.0,1.02398]
[1742569868126,2.34763,1954.1,1953.9,4.23184]
[1742569868127,1.02403,1954.0,1953.9,4.23184]
[1742569868329,2.8202,1954.0,1953.7,5.20856]
[1742569868528,1.02413,1953.8,1953.7,5.20856]
[1742569868829,2.44922,1953.9,1953.8,1.02413]
[1742569869332,1.02413,1953.8,1953.7,5.20855]
[1742569869519,1.4251,1953.8,1953.7,5.20855]
[1742569869919,2.44923,1953.8,1953.7,5.20855]
[1742569870729,1.02419,1953.7,1953.6,1.02421]
[1742569870921,2.44929,1953.7,1953.6,1.02421]
[1742569871717,1.02413,1953.9,1953.8,1.02408]
[1742569871923,2.40683,1953.9,1953.8,1.02408]
[1742569872828,1.3827,1953.9,1953.8,1.02408]
[1742569873132,2.40678,1953.9,1953.8,1.02408]
[1742569874718,3.94291,1953.9,1953.5,41.83193813]
[1742569874923,1.02424,1953.6,1953.5,1.03193813]
[1742569875120,1.02424,1953.6,1953.5,0.00767813]
[1742569875725,1.72084,1953.6,1953.5,0.00767813]
[1742569876830,2.43144,1953.6,1953.5,1.03196813]
[1742569877032,2.43144,1953.6,1953.5,2.36426813]
[1742569877528,2.43144,1953.6,1953.5,1.33997813]
[1742569877732,2.43144,1953.6,1953.5,0.00767813]
[1742569878732,2.43144,1953.6,1953.5,1.34737813]
[1742569878930,1.02445,1953.2,1953.1,3.2078]
[1742569879737,2.37905,1953.2,1953.1,3.2078]
[1742569881231,1.0245,1953.1,1953.0,0.00767813]
[1742569881435,2.4524,1953.1,1953.0,0.00767813]
[1742569884738,2.4524,1953.1,1953.0,1.03222813]
[1742569884940,2.4524,1953.1,1953.0,2.41542813]
[1742569885432,1.4279,1953.1,1953.0,2.41542813]
[1742569886634,2.4524,1953.1,1953.0,2.41542813]
[1742569887339,1.4279,1953.1,1953.0,2.41542813]
[1742569888039,2.4524,1953.1,1953.0,2.41542813]
[1742569888841,1.4279,1953.1,1953.0,2.41542813]
[1742569889531,0.6536,1953.6,1953.5,1.02429]
[1742569889733,0.6505,1954.0,1953.9,1.02408]
[1742569889941,1.319,1954.2,1954.1,1.02398]
[1742569890540,2.34292,1954.2,1954.1,1.02398]
[1742569890936,1.319,1954.2,1954.1,1.02398]
[1742569891442,1.319,1954.2,1954.0,4.5509]
[1742569891647,2.34295,1954.2,1954.1,1.02398]
[1742569892244,1.319,1954.2,1954.1,41.82398]
[1742569893446,1.319,1954.2,1954.1,1.02398]
[1742569893935,2.34292,1954.2,1954.1,1.02398]
[1742569894446,1.319,1954.2,1954.1,1.02398]
[1742569894637,0.00767813,1954.3,1954.2,1.02392]
[1742569894837,0.00767813,1954.3,1954.2,5.59482]
[1742569895044,1.02354,1955.0,1954.9,1.02353]
[1742569895239,1.82895385,1955.0,1954.9,1.02353]
[1742569895438,1.82895385,1955.0,1954.8,1.02358]
[1742569895439,1.02358,1954.9,1954.8,1.02358]
[1742569895639,1.74005,1955.0,1954.9,1.02356]
[1742569895945,9.23328,1955.3,1954.9,1.02356]
[1742569895946,1.02337,1955.3,1954.9,4.49056]
[1742569896250,2.41174,1955.4,1955.2,1.02335]
[1742569896446,1.34127813,1955.3,1955.2,1.02335]
[1742569896647,0.00767813,1955.3,1955.2,1.02335]
[1742569899547,1.0234,1955.2,1955.1,4.49809813]
[1742569899754,2.3151,1955.2,1955.1,4.49809813]
[1742569900551,2.3151,1955.2,1955.1,0.00767813]
[1742569904752,2.40398248,1955.2,1955.1,0.00767813]
[1742569905757,2.40398248,1955.2,1954.7,3.2078]
[1742569905758,1.02361,1954.8,1954.7,3.2078]
[1742569905962,1.02366,1954.7,1954.6,1.02369]
[1742569906162,1.02367,1954.8,1954.7,1.02363]
[1742569906363,4.48852,1955.0,1954.9,1.02356]
[1742569906561,1.02352,1955.0,1954.9,1.02356]
[1742569907463,1.02352,1955.0,1954.9,4.23136]
[1742569907766,1.3277,1955.1,1955.0,1.0235]
[1742569907962,9.848,1955.2,1955.1,1.02345]
[1742569908264,1.70376813,1955.3,1955.2,1.0234]
[1742569908566,3.09286813,1955.3,1955.2,1.0234]
[1742569910063,1.0234,1955.2,1955.1,1.4057]
[1742569910262,1.02345,1955.1,1955.0,6.6728]
[1742569910563,1.0235,1955.0,1954.9,5.63702]
[1742569910767,2.4126,1955.0,1954.9,2.42922]
[1742569911971,1.02349,1955.1,1955.0,1.02345]
[1742569912268,2.45469,1955.1,1955.0,2.39565]
[1742569912469,1.0235,1955.0,1954.9,4.23131]
[1742569912664,2.4547,1955.0,1954.9,1.02351]
[1742569912863,2.4547,1955.0,1954.9,1.3722]
[1742569913068,1.02356,1954.9,1954.8,0.00767813]
[1742569913265,1.02377,1954.5,1954.4,2.39597]
[1742569913476,1.02376,1954.6,1954.5,1.02371]
[1742569913665,2.45496,1954.6,1954.5,2.39591]
[1742569915579,4.7702,1954.9,1954.5,1.3722]
[1742569915778,1.3391,1954.8,1954.7,1.02366]
[1742569916081,2.36271,1954.8,1954.7,2.33316]
[1742569916281,1.3391,1954.8,1954.6,3.2078]
[1742569916483,1.02377,1954.5,1954.4,4.23925813]
[1742569916683,1.02377,1954.5,1954.4,0.00767813]
[1742569917080,1.02377,1954.5,1954.4,1.03149813]
[1742569917381,1.74017,1954.5,1954.4,1.03149813]
[1742569917576,1.74017,1954.5,1954.4,0.00767813]
[1742569917783,1.74017,1954.5,1954.4,1.03149813]
[1742569918079,1.74017,1954.5,1954.4,0.00767813]
[1742569918481,1.74017,1954.5,1954.4,1.03149813]
[1742569918681,1.74017,1954.5,1954.4,0.00767813]
[1742569919385,1.74017,1954.5,1954.4,1.03149813]
[1742569919988,1.74017,1954.5,1954.4,0.00767813]
[1742569920383,1.74017,1954.5,1954.4,1.03149813]
[1742569920591,1.3017,1954.6,1954.5,1.02377]
[1742569920789,1.3017,1954.6,1954.5,2.42457]
[1742569920986,1.02369,1954.7,1954.6,1.02371]
[1742569921185,1.02365,1954.8,1954.7,1.02361]
[1742569922281,2.35185,1954.8,1954.7,1.02361]
[1742569923090,1.3282,1954.8,1954.7,1.02361]
[1742569923286,1.02355,1955.0,1954.9,1.0235]
[1742569923488,2.35065,1955.0,1954.9,1.0235]
[1742569923794,2.35065,1955.0,1954.9,2.3257]
[1742569924389,1.3271,1955.0,1954.9,2.3257]
[1742569924592,1.73405,1955.1,1955.0,1.0235]
[1742569925295,1.02356,1955.0,1954.9,1.02352]
[1742569925994,1.73409,1955.1,1955.0,1.0235]
[1742569926300,3.13999,1955.1,1955.0,1.0235]
[1742569926690,1.4059,1955.1,1955.0,1.0235]
[1742569927389,1.4059,1955.1,1955.0,2.3218]
[1742569927589,2.42935,1955.1,1955.0,2.3218]
[1742569927785,1.4059,1955.1,1955.0,2.3218]
[1742569928093,2.42935,1955.1,1955.0,2.3218]
[1742569928886,1.03103813,1955.3,1955.0,1.2983]
[1742569929188,2.34532813,1955.3,1955.2,1.0234]
[1742569929388,1.02317,1955.7,1955.6,1.02314]
[1742569929596,3.09752265,1955.7,1955.6,1.02314]
[1742569929893,1.02319,1955.6,1955.5,2.3588]
[1742569930199,2.33749,1955.6,1955.5,2.3588]
[1742569931696,1.70205813,1955.7,1955.6,1.02319]
[1742569931896,1.03085813,1955.7,1955.6,1.02319]
[1742569932397,0.00767813,1955.7,1955.6,1.02319]
[1742569932991,1.03081813,1955.7,1955.6,1.02319]
[1742569933392,1.03081813,1955.7,1955.5,5.8218]
[1742569933393,1.02319,1955.6,1955.5,5.8218]
[1742569933591,2.38189,1955.6,1955.5,4.7986]
[1742569933794,1.02324,1955.5,1955.4,1.03096813]
[1742569933987,1.3587,1955.5,1955.4,1.03096813]
[1742569934192,1.3587,1955.5,1955.4,4.23876813]
[1742569934790,1.36637813,1955.7,1955.4,3.21547813]
[1742569934993,1.02324,1955.5,1955.4,1.03094813]
[1742569935997,1.02324,1955.5,1955.4,0.00767813]
[1742569936694,1.02345,1955.1,1955.0,4.93055]
[1742569936901,1.02343,1955.2,1955.1,1.0234]
[1742569937292,1.02345,1955.1,1955.0,4.93056]
[1742569937592,2.37965,1955.1,1955.0,4.93056]
[1742569937895,2.37965,1955.1,1955.0,3.2078]
[1742569938399,1.0235,1955.0,1954.9,0.00767813]
[1742569938606,1.02377,1954.5,1954.4,4.48677]
[1742569938899,2.55908,1954.8,1954.4,4.48677]
[1742569938900,1.02374,1954.6,1954.5,1.02372]
[1742569939100,2.39164,1954.6,1954.5,1.02372]
[1742569939492,2.39164,1954.6,1954.3,46.56748]
[1742569939493,1.02381,1954.5,1954.4,1.02378]
[1742569939698,1.02382,1954.4,1954.3,41.82894878]
[1742569939893,1.02382,1954.4,1954.3,0.00511878]
[1742569940301,5.17102,1954.4,1954.3,0.00511878]
[1742569940901,8.37882,1954.4,1954.3,0.00511878]
[1742569941101,9.12016452,1954.4,1954.3,0.00511878]
[1742569941400,9.12015564,1954.4,1954.3,0.00511878]
[1742569941794,5.91235564,1954.4,1954.3,0.00511878]
[1742569941993,9.12015564,1954.4,1954.3,0.00511878]
[1742569942202,5.91235564,1954.4,1954.3,0.00511878]
[1742569942391,9.12015564,1954.4,1954.3,0.00511878]
[1742569942795,9.12016416,1954.4,1954.3,0.00511878]
[1742569943198,5.91236416,1954.4,1954.3,0.00511878]
[1742569943398,5.82342,1954.4,1954.3,0.00511878]
[1742569943992,5.91236104,1954.4,1954.3,0.00511878]
[1742569944504,5.9123603,1954.4,1954.3,0.00511878]
[1742569944704,5.82342,1954.4,1954.3,0.00511878]
[1742569944900,5.91236142,1954.4,1954.3,0.00511878]
[1742569946202,5.91236215,1954.4,1954.3,0.00511878]
[1742569948112,5.82342,1954.4,1954.3,1.38621878]
[1742569948499,5.82342,1954.4,1954.3,0.00511878]
[1742569948700,5.91236192,1954.4,1954.3,0.00511878]
[1742569949401,1.02413,1953.8,1953.7,4.23197]
[1742569949598,1.02413,1953.8,1953.7,1.02417]
[1742569949801,1.02419,1953.7,1953.6,1.70594]
[1742569949999,2.56052,1953.7,1953.4,3.2078]
[1742569950299,7.36115,1953.8,1953.5,40.8]
[1742569950499,1.02424,1953.6,1953.5,40.8]
[1742569950700,1.02424,1953.6,1953.5,42.1392]
[1742569950901,1.02434,1953.4,1953.3,3.2078]
[1742569951096,1.02434,1953.4,1953.2,1.3392]
[1742569951303,2.43269,1953.3,1953.2,43.16361]
[1742569951498,2.43269,1953.3,1953.2,1.3392]
[1742569951704,1.0245,1953.1,1953.0,1.70621]
[1742569952003,1.0245,1953.1,1953.0,43.84541]
[1742569952403,1.0245,1953.1,1953.0,43.16371]
[1742569953011,1.0245,1953.1,1953.0,43.16375]
[1742569953813,1.02449,1953.2,1953.1,1.02446]
[1742569954007,2.32299,1953.2,1953.1,1.02446]
[1742569957102,1.0245,1953.1,1953.0,43.16372]
[1742569957314,2.3673,1953.1,1953.0,43.16372]
[1742569958217,1.3428,1953.1,1953.0,43.16372]
[1742569959115,1.02448,1953.2,1953.0,43.16372]
[1742569959313,2.36723,1953.3,1953.2,1.0244]
[1742569959621,1.02449,1953.2,1953.1,1.02446]
[1742569959820,2.44309,1953.2,1953.1,1.02446]
[1742569960316,1.02435,1953.4,1953.3,1.02439]
[1742569960610,1.42627813,1953.5,1953.4,1.02434]
[1742569960815,1.42627813,1953.5,1953.4,2.35624]
[1742569961411,0.00767813,1953.5,1953.4,2.35624]
[1742569962515,1.0241,1953.9,1953.8,1.02413]
[1742569962720,2.4413,1953.9,1953.8,1.02413]
[1742569963018,1.0241,1953.9,1953.8,4.23193]
[1742569963214,1.0241,1953.9,1953.8,1.02413]
[1742569963409,1.4172,1954.0,1953.9,1.02408]
[1742569963617,1.02401,1954.1,1954.0,1.02403]
[1742569963819,2.44888813,1954.1,1954.0,1.02403]
[1742569964621,1.02403,1954.0,1953.9,2.33006]
[1742569964815,2.44123,1954.0,1953.9,2.33006]
[1742569966116,1.03168813,1954.1,1954.0,1.02403]
[1742569966718,1.02403,1954.0,1953.9,1.306]
[1742569966924,2.37503,1954.0,1953.9,1.306]
[1742569967727,2.37503,1954.0,1953.9,2.33008]
[1742569970331,2.37503,1954.0,1953.9,1.306]
[1742569970823,2.37503,1954.0,1953.9,2.33008]
[1742569971421,2.37503,1954.0,1953.9,1.306]
[1742569971628,2.37503,1954.0,1953.9,2.33008]
[1742569972524,2.37503,1954.0,1953.9,1.306]
[1742569973031,1.02408,1953.9,1953.8,0.70327813]
[1742569973227,2.42598,1953.9,1953.8,0.00767813]
[1742569973825,2.51483607,1953.9,1953.8,0.00767813]
[1742569974028,1.02424,1953.6,1953.5,5.87779]
[1742569974229,1.02424,1953.6,1953.5,2.41379]
[1742569975131,2.44693,1953.7,1953.6,1.02424]
[1742569976134,2.44693,1953.7,1953.6,4.23204]
[1742569976936,1.02412,1953.9,1953.8,1.02413]
[1742569977134,2.44682,1953.9,1953.8,1.02413]
[1742569977331,1.02419,1953.7,1953.6,1.02422]
[1742569978733,1.02424,1953.6,1953.5,1.3286]
[1742569978932,2.56073,1953.5,1953.0,5.76918]
[1742569979234,1.02443,1953.3,1953.2,1.02439]
[1742569980333,1.02445,1953.2,1953.1,1.3286]
[1742569980540,2.35065,1953.2,1953.1,1.3286]
[1742569980941,1.0245,1953.1,1953.0,1.02452]
[1742569981236,1.02466,1952.9,1952.8,1.02462]
[1742569982542,1.02466,1952.8,1952.7,46.41157]
[1742569982742,1.02466,1952.8,1952.7,4.91437]
[1742569983042,1.02475,1952.7,1952.6,1.02472]
[1742569983238,1.02475,1952.7,1952.6,41.82472]
[1742569983445,1.0247,1952.8,1952.7,1.02467]
[1742569983643,1.02469,1952.8,1952.7,1.02467]
[1742569983838,1.02469,1952.8,1952.7,1.3781]
[1742569984537,1.02471,1952.7,1952.6,40.8]
[1742569984845,1.02471,1952.7,1952.6,41.82473]
[1742569985346,1.02471,1952.7,1952.6,40.8]
[1742569985744,5.76966,1952.7,1952.3,1.02489]
[1742569986041,1.02487,1952.4,1952.3,2.40302]
[1742569986238,1.02487,1952.4,1952.3,43.20302]
[1742569986952,1.3008,1952.6,1952.5,1.02481]
[1742569987148,11.56855,1952.9,1952.5,3.2078]
[1742569987347,2.41226,1952.8,1952.7,1.02471]
[1742569987652,2.41226,1952.8,1952.7,1.3876]
[1742569988052,1.02471,1952.7,1952.6,40.8]
[1742569988253,2.41231,1952.7,1952.6,40.8]
[1742569988552,1.3876,1952.7,1952.6,41.82476]
[1742569989053,14.0079,1952.9,1952.8,1.02466]
[1742569989351,1.7205,1952.9,1952.8,1.02466]
[1742569989546,1.02466,1952.8,1952.7,1.3876]
[1742569989755,1.02471,1952.7,1952.6,40.8]
[1742569990250,1.02481,1952.5,1952.4,7.69763]
[1742569990450,9.93023,1952.9,1952.4,7.69763]
[1742569990451,2.3303,1952.6,1952.5,1.02481]
[1742569990651,2.3303,1952.6,1952.5,41.82481]
[1742569991152,1.02481,1952.5,1952.4,1.02483]
[1742569991658,2.33031,1952.5,1952.4,43.20083]
[1742569993650,2.33031,1952.5,1952.4,42.176]
[1742569993951,2.33031,1952.5,1952.4,1.02487]
[1742569994250,6.02666,1952.8,1952.2,7.83029]
[1742569994454,1.02485,1952.5,1952.4,41.82481]
[1742569995052,1.02492,1952.3,1952.2,2.41834]
[1742569995354,2.45331,1952.4,1952.3,1.02492]
[1742569995557,1.02486,1952.5,1952.4,1.02482]
[1742569995851,2.38876,1952.5,1952.4,1.02482]
[1742569997155,1.02487,1952.4,1952.3,2.31641]
[1742569997362,2.38877,1952.4,1952.3,2.31641]
[1742569998357,2.38877,1952.4,1952.1,4.23279]
[1742569998358,1.3639,1952.4,1952.1,4.23279]
[1742569998659,2.38882,1952.3,1952.2,1.2915]
[1742569998858,2.38882,1952.3,1952.2,2.31647]
[1742570001354,1.02497,1952.2,1952.1,1.02502]
[1742570001657,2.45097,1952.2,1952.1,2.37062]
[1742570002958,2.45097,1952.2,1952.1,1.02502]
[1742570003164,1.02502,1952.1,1952.0,1.02502]
[1742570003661,1.02502,1952.1,1952.0,41.82502]
[1742570004060,1.02502,1952.1,1951.7,3.8721]
[1742570004249,1.02517,1951.9,1951.8,1.02512]
[1742570004656,2.38207,1951.9,1951.8,41.82512]
[1742570005366,1.02528,1951.7,1951.6,1.02522]
[1742570005759,1.02528,1951.7,1951.6,41.82522]
[1742570005967,1.02534,1951.5,1951.4,1.69817]
[1742570006160,1.02534,1951.5,1951.4,4.90597]
[1742570006573,1.02534,1951.5,1951.4,1.69817]
[1742570006760,2.32543,1951.6,1951.5,1.02534]
[1742570008063,1.02539,1951.4,1951.3,41.82541]
[1742570008266,3.06998,1951.5,1951.4,1.02539]
[1742570008668,3.06994,1951.5,1951.4,1.02539]
[1742570009772,2.0446,1951.5,1951.4,1.02539]
[1742570010264,3.06994,1951.5,1951.4,1.02539]
[1742570010667,2.0446,1951.5,1951.4,1.02539]
[1742570010863,1.02539,1951.4,1951.3,41.82543]
[1742570011066,0.6904,1951.5,1951.4,1.02539]
[1742570011456,1.981,1951.5,1951.4,1.02539]
[1742570012067,3.00634,1951.5,1951.4,4.23319]
[1742570012267,3.00634,1951.5,1951.4,1.02539]
[1742570014368,3.00634,1951.5,1951.4,4.23319]
[1742570014765,1.981,1951.5,1951.4,4.23319]
[1742570015564,3.00634,1951.5,1951.4,4.23319]
[1742570015763,1.981,1951.5,1951.4,4.23319]
[1742570016764,1.981,1951.5,1951.3,1.02541]